bitfinex/quotes_ETHUSD_20251116
["timestamp","ask_amount","ask_price","bid_price","bid_amount"]
[1763278074175,0.4779,3206.6,3206.5,0.001]
[1763278074680,0.9325,3206.6,3206.5,0.001]
[1763278074851,0.4779,3206.6,3206.5,0.001]
[1763278077287,0.9325,3206.6,3206.5,0.001]
[1763278081859,1.19016238,3206.6,3206.5,0.001]
[1763278082080,1.48107664,3206.6,3206.5,0.001]
[1763278082271,1.19016238,3206.6,3206.5,0.001]
[1763278083190,0.9325,3206.6,3206.5,0.001]
[1763278093806,0.90293878,3206.6,3206.5,0.001]
[1763278095117,0.44833878,3206.6,3206.5,0.001]
[1763278095819,0.92993878,3206.6,3206.5,0.001]
[1763278096210,0.4194,3206.6,3206.5,0.001]
[1763278097496,0.002,3206.9,3206.5,0.9552]
[1763278097696,0.002,3206.9,3206.8,0.4926]
[1763278097906,0.002,3206.9,3206.8,0.898104]
[1763278098104,0.002,3206.9,3206.8,1.66008678]
[1763278098292,0.002,3206.9,3206.8,4.90338937]
[1763278103123,0.002,3206.9,3206.8,6.54751316]
[1763278108535,0.002,3206.9,3206.8,10.37351316]
[1763278108900,0.002,3206.9,3206.8,12.23573621]
[1763278110535,0.002,3206.9,3206.8,13.36947701]
[1763278111724,0.002,3206.9,3206.8,9.86313017]
[1763278111926,0.002,3206.9,3206.8,13.36947701]
[1763278114930,0.002,3206.9,3206.8,9.54347701]
[1763278117256,0.002,3206.9,3206.8,5.57553017]
[1763278117555,0.002,3206.9,3206.8,9.57967701]
[1763278124953,0.002,3207.2,3206.9,1.5392448]
[1763278125250,0.002,3207.2,3207.1,8.73137339]
[1763278125756,0.002,3207.2,3207.1,9.22917339]
[1763278126053,0.002,3207.2,3207.1,9.35405923]
[1763278128146,0.002,3207.2,3207.1,8.45075523]
[1763278128461,0.002,3207.2,3207.1,7.00868581]
[1763278128750,0.002,3207.2,3207.1,10.86288979]
[1763278129155,0.002,3207.2,3207.1,14.68888979]
[1763278130656,0.002,3207.2,3207.1,12.43791637]
[1763278130820,0.002,3207.2,3207.1,14.19108979]
[1763278131260,0.002,3207.2,3207.1,10.36508979]
[1763278132859,0.002,3207.2,3207.1,10.54808979]
[1763278133059,0.002,3207.2,3207.1,11.04588979]
[1763278134657,0.002,3207.2,3207.1,10.36508979]
[1763278134831,0.002,3207.2,3207.1,11.04588979]
[1763278135198,0.002,3207.2,3207.1,10.36508979]
[1763278135566,0.002,3207.2,3207.1,11.04588979]
[1763278143060,0.002,3207.2,3207.1,10.36508979]
[1763278143263,0.4634,3207.2,3207.1,8.13861637]
[1763278143562,0.9358,3207.2,3207.1,7.73311237]
[1763278143763,0.9358,3207.2,3207.1,11.96461637]
[1763278144879,0.925,3207.2,3207.1,13.71778979]
[1763278145291,0.002,3207.2,3207.1,14.21288979]
[1763278145917,0.002,3207.2,3207.1,14.88368979]
[1763278146216,0.4749,3207.2,3207.1,13.71778979]
[1763278147877,0.002,3207.2,3207.1,13.71778979]
[1763278149424,0.002,3207.2,3207.1,14.21288979]
[1763278149713,0.002,3207.2,3207.1,14.88368979]
[1763278156636,0.002,3207.2,3207.1,14.39428979]
[1763278156804,0.002,3207.2,3207.1,14.86768979]
[1763278164842,0.002,3207.2,3207.1,14.39428979]
[1763278165356,0.002,3207.2,3207.1,14.86768979]
[1763278165967,0.002,3207.2,3207.1,14.21288979]
[1763278167063,0.002,3207.2,3207.1,17.50288979]
[1763278167270,0.002,3207.2,3207.1,14.21288979]
[1763278167566,0.002,3207.2,3207.1,14.39338979]
[1763278168032,0.002,3207.2,3207.1,14.86678979]
[1763278168869,0.002,3207.2,3207.1,13.00304163]
[1763278171541,1e-08,3207.7,3207.6,0.889904]
[1763278171741,1e-08,3207.7,3207.6,7.49224348]
[1763278171951,1e-08,3207.7,3207.6,8.71486783]
[1763278172273,1e-08,3207.7,3207.6,11.95732404]
[1763278173889,0.002,3207.9,3207.6,11.48392404]
[1763278174196,0.4853,3209.8,3208.6,0.405504]
[1763278174354,0.4853,3209.8,3208.9,0.405504]
[1763278174548,0.4704,3209.7,3209.0,3.67464348]
[1763278174981,0.4704,3209.7,3209.0,4.16864348]
[1763278175185,0.1893,3211.0,3209.0,4.71032002]
[1763278175393,0.4704,3209.8,3209.0,4.71032002]
[1763278175756,0.4704,3210.2,3209.0,4.71032002]
[1763278175990,0.1893,3211.0,3209.1,4.65538328]
[1763278176179,0.4704,3210.1,3209.1,5.82948328]
[1763278176790,0.4704,3210.1,3209.1,12.96332176]
[1763278176999,0.4704,3210.1,3209.3,3.67464348]
[1763278177212,0.4704,3210.1,3209.3,9.45523552]
[1763278177493,0.4704,3210.1,3209.3,9.92563552]
[1763278178476,0.4704,3209.9,3209.3,12.5475798]
[1763278178687,0.4704,3209.9,3209.3,13.0415798]
[1763278185604,0.4704,3209.7,3209.3,12.5475798]
[1763278185762,0.4708,3209.4,3209.3,11.6492758]
[1763278185964,0.9412,3209.4,3209.3,11.6492758]
[1763278186412,0.9412,3209.4,3209.3,12.0547798]
[1763278191797,0.4708,3209.4,3209.3,12.0547798]
[1763278192491,0.9412,3209.4,3209.3,12.0547798]
[1763278193421,0.9412,3209.4,3209.3,10.59418776]
[1763278196171,0.9412,3209.4,3209.3,6.76818776]
[1763278196651,0.4708,3209.4,3209.3,6.76818776]
[1763278197309,0.9412,3209.4,3209.3,6.76818776]
[1763278197953,0.9412,3209.4,3209.3,6.29778776]
[1763278198449,0.9412,3209.4,3209.3,7.23917041]
[1763278199938,0.4708,3209.4,3209.3,7.23917041]
[1763278201376,0.002,3209.4,3209.3,7.73197041]
[1763278201660,0.002,3209.4,3209.3,8.69677041]
[1763278202452,0.4708,3209.4,3209.3,7.70997041]
[1763278202656,0.9412,3209.4,3209.3,7.70997041]
[1763278202835,0.002,3209.4,3209.3,8.69677041]
[1763278203066,0.002,3210.1,3209.4,0.405504]
[1763278203298,0.002,3210.5,3210.1,1.5392448]
[1763278203496,0.1893,3211.0,3210.5,0.405504]
[1763278203666,0.1893,3211.0,3210.9,2.04810268]
[1763278203874,1.64259868,3212.9,3211.0,0.405504]
[1763278204072,0.4704,3211.3,3211.1,1.64259868]
[1763278204274,0.6581,3211.2,3211.1,6.09534737]
[1763278204812,0.4565,3211.9,3211.2,0.405504]
[1763278204962,0.4565,3211.9,3211.8,1.64259868]
[1763278205481,0.923,3211.9,3211.8,1.64259868]
[1763278206285,0.923,3211.9,3211.8,4.75611757]
[1763278207606,0.923,3211.9,3211.7,0.405504]
[1763278207794,0.4565,3211.8,3211.7,0.405504]
[1763278207998,0.923,3211.8,3211.7,0.405504]
[1763278208506,0.923,3211.8,3211.5,1.1337408]
[1763278208707,0.4565,3211.7,3211.6,3.51916092]
[1763278209063,0.923,3211.7,3211.6,3.51916092]
[1763278209262,0.923,3211.7,3211.6,5.1617596]
[1763278210995,0.923,3211.7,3211.2,4.75662351]
[1763278211206,0.4523,3211.6,3211.4,1.5392448]
[1763278211613,0.4665,3211.5,3211.4,1.5392448]
[1763278211968,0.923,3211.5,3211.4,1.5392448]
[1763278212478,0.923,3211.5,3211.4,6.29575018]
[1763278212677,0.923,3211.5,3211.4,0.405504]
[1763278213006,0.923,3211.5,3211.0,3.826]
[1763278213196,0.4665,3211.1,3211.0,8.58288076]
[1763278213400,0.4665,3211.1,3211.0,5.89062156]
[1763278213604,0.9387,3211.1,3211.0,5.89062156]
[1763278213896,0.4665,3211.1,3211.0,5.89062156]
[1763278214097,0.4665,3211.1,3211.0,4.05945028]
[1763278214312,0.9387,3211.1,3211.0,2.77633948]
[1763278214712,0.9387,3211.1,3211.0,5.89063409]
[1763278216119,0.9387,3211.1,3211.0,4.75689329]
[1763278216701,0.4665,3211.1,3211.0,4.75689329]
[1763278216887,1.64259868,3212.4,3211.0,4.75689329]
[1763278217087,0.4722,3211.4,3211.2,1.64259868]
[1763278217489,0.4722,3211.4,3211.0,4.75689329]
[1763278217694,0.013,3211.1,3211.0,4.75689329]
[1763278218102,0.4852,3211.1,3211.0,4.75689329]
[1763278219213,0.4852,3211.1,3211.0,1.64259868]
[1763278219520,0.4852,3211.1,3211.0,4.75689329]
[1763278222314,0.4852,3211.1,3211.0,3.11429461]
[1763278223386,0.002,3211.9,3211.0,9.63079038]
[1763278223581,0.4722,3211.7,3211.3,1.64259868]
[1763278223825,0.4722,3211.7,3211.4,0.03113906]
[1763278223986,0.4722,3211.7,3211.3,1.64259868]
[1763278224180,0.4729,3211.4,3211.2,3.11410064]
[1763278224382,0.4722,3211.7,3211.2,3.11410064]
[1763278224599,0.4729,3211.3,3211.2,3.11410064]
[1763278224820,0.4729,3211.3,3211.0,1.1337408]
[1763278225011,0.4676,3211.2,3211.0,4.24799652]
[1763278225320,0.4729,3211.1,3211.0,4.24799652]
[1763278225684,0.9451,3211.1,3211.0,4.24799652]
[1763278226882,0.4729,3211.1,3211.0,5.53109511]
[1763278227889,0.9451,3211.1,3211.0,5.53109511]
[1763278228099,0.4729,3211.1,3211.0,4.24799652]
[1763278229325,0.9451,3211.1,3211.0,4.24799652]
[1763278230812,0.4729,3211.1,3211.0,4.24799652]
[1763278231011,0.4729,3211.1,3211.0,5.99676794]
[1763278231523,0.4729,3211.1,3211.0,2.88251222]
[1763278231840,0.9451,3211.1,3210.9,1.1337408]
[1763278232135,0.4722,3211.1,3211.0,3.11429461]
[1763278232338,0.9451,3211.1,3211.0,3.11429461]
[1763278233341,0.4722,3211.4,3211.1,1.1337408]
[1763278233837,0.4729,3211.2,3211.1,1.1337408]
[1763278234238,0.9451,3211.2,3211.1,1.1337408]
[1763278234533,0.4539,3211.5,3211.1,1.1337408]
[1763278234854,0.4539,3211.8,3211.4,1.74877142]
[1763278235001,0.4539,3211.8,3211.6,1.74877142]
[1763278235423,0.4582,3211.7,3211.6,4.86248421]
[1763278236000,0.9121,3211.7,3211.6,4.86248421]
[1763278238308,0.9121,3211.7,3211.5,1.74877142]
[1763278238518,0.4994,3211.6,3211.5,1.74877142]
[1763278240254,0.4994,3211.6,3211.5,4.86258116]
[1763278241652,0.4994,3211.6,3211.3,3.826]
[1763278241828,0.0496,3211.4,3211.3,3.826]
[1763278242143,0.0496,3211.4,3211.3,6.94000367]
[1763278242344,0.5035,3211.4,3211.3,6.94000367]
[1763278242720,0.5035,3211.4,3211.3,3.826]
[1763278242943,0.5035,3211.4,3211.3,6.94000367]
[1763278243146,0.5035,3211.4,3211.3,3.826]
[1763278243550,0.5035,3211.4,3211.2,4.86284268]
[1763278243751,0.4501,3211.3,3211.2,5.99658348]
[1763278244118,0.904,3211.3,3211.2,5.99658348]
[1763278244349,0.002,3211.7,3211.2,12.26693342]
[1763278244651,0.4539,3211.6,3211.2,10.021762]
[1763278244949,0.4582,3211.3,3211.2,5.99658348]
[1763278245452,0.9121,3211.3,3211.2,4.24781206]
[1763278246549,0.9121,3211.3,3211.2,1.1337408]
[1763278246751,0.9121,3211.3,3210.9,1.1337408]
[1763278246926,0.4582,3211.0,3210.9,1.1337408]
[1763278247128,0.4539,3211.6,3210.9,2.42748157]
[1763278247334,0.4539,3211.6,3211.1,1.74877142]
[1763278247738,0.4582,3211.2,3210.9,2.42748157]
[1763278248052,0.0455,3211.0,3210.9,1.1337408]
[1763278248436,0.4994,3211.0,3210.9,2.42748157]
[1763278249259,0.4994,3211.0,3210.9,5.54187317]
[1763278250566,0.002,3211.7,3210.9,9.15266477]
[1763278250860,0.4539,3211.6,3211.2,1.74877142]
[1763278251237,0.4582,3211.3,3211.2,1.74877142]
[1763278251433,0.4582,3211.3,3211.2,4.86287206]
[1763278251757,0.002,3211.7,3211.3,1.1337408]
[1763278251972,0.002,3211.7,3211.6,1.74877142]
[1763278252144,0.002,3211.7,3211.6,3.49754284]
[1763278252349,0.002,3211.7,3211.6,3.99394284]
[1763278253073,0.002,3211.7,3211.6,5.99798764]
[1763278253273,0.002,3211.7,3211.6,6.60090021]
[1763278253772,0.002,3211.7,3211.6,9.83932635]
[1763278259392,0.002,3211.7,3211.6,9.37452635]
[1763278260500,0.002,3211.7,3211.6,9.83932635]
[1763278261093,0.002,3211.7,3211.6,9.37452635]
[1763278261472,0.002,3211.7,3211.6,9.83932635]
[1763278264591,0.002,3211.7,3211.6,9.37452635]
[1763278265158,0.002,3211.7,3211.6,9.86912635]
[1763278268753,0.002,3212.3,3211.8,0.4676]
[1763278269026,0.002,3212.3,3211.7,1.5392448]
[1763278269027,0.1967,3214.0,3212.5,2.0068448]
[1763278269230,0.471,3213.9,3213.6,1.74877142]
[1763278269595,0.4626,3213.7,3213.2,1.74877142]
[1763278269926,0.471,3213.9,3213.6,0.471]
[1763278270093,0.1967,3214.0,3213.7,0.405504]
[1763278270296,0.471,3214.4,3214.0,0.405504]
[1763278270644,0.4626,3214.1,3214.0,0.405504]
[1763278270818,0.4626,3214.1,3214.0,0.876504]
[1763278271128,0.4626,3214.1,3214.0,3.98789167]
[1763278271129,0.9336,3214.1,3214.0,3.98789167]
[1763278271496,0.6594,3214.5,3214.0,3.98789167]
[1763278271698,0.6594,3214.5,3214.3,1.74877142]
[1763278272019,0.471,3214.4,3214.3,2.15427542]
[1763278272325,0.9336,3214.4,3214.3,2.81367542]
[1763278272694,0.4626,3214.4,3214.3,2.81367542]
[1763278273025,0.9336,3214.4,3214.3,2.81367542]
[1763278273232,0.9336,3214.4,3214.3,5.9247727]
[1763278273729,0.002,3214.5,3214.4,0.405504]
[1763278274225,0.4678,3214.5,3214.4,0.405504]
[1763278274404,0.4678,3214.5,3214.4,0.856704]
[1763278274809,0.002,3214.5,3214.4,5.11259082]
[1763278275109,0.002,3214.5,3214.4,8.69419131]
[1763278275732,0.002,3214.5,3214.4,8.22359131]
[1763278276036,0.002,3214.5,3214.4,8.69419131]
[1763278278908,0.002,3214.5,3214.4,8.98601937]
[1763278280730,0.002,3214.5,3214.4,8.51541937]
[1763278281234,0.002,3214.5,3214.4,8.98601937]
[1763278282137,0.002,3214.8,3214.6,0.405504]
[1763278282324,0.1884,3216.0,3215.7,2.04059948]
[1763278282525,0.6396,3216.0,3215.7,2.04059948]
[1763278282727,0.4658,3215.8,3215.7,0.4512]
[1763278282905,0.4658,3215.8,3215.7,0.856704]
[1763278283108,0.917,3215.8,3215.7,0.856704]
[1763278284401,0.4658,3215.8,3215.7,3.96644682]
[1763278284607,0.917,3215.8,3215.7,3.96644682]
[1763278285038,0.917,3215.8,3215.2,0.405504]
[1763278285226,0.4658,3215.3,3215.2,4.64947122]
[1763278285432,0.4472,3215.7,3215.4,0.405504]
[1763278285907,0.4658,3215.5,3215.4,0.405504]
[1763278286110,0.4658,3215.5,3215.3,0.917]
[1763278286456,0.4658,3215.5,3214.5,4.32056845]
[1763278286457,0.5096,3215.4,3214.2,3.11119407]
[1763278286665,0.4512,3215.4,3215.0,0.4658]
[1763278286936,0.4658,3215.1,3214.3,1.1337408]
[1763278287140,0.4512,3215.4,3214.3,0.9347061]
[1763278287338,0.6538,3214.4,3214.3,0.9347061]
[1763278287837,1.105,3214.4,3214.3,5.17954418]
[1763278288344,1.105,3214.4,3214.3,2.4739509]
[1763278288747,1.105,3214.4,3214.3,5.58504818]
[1763278290142,1.105,3214.4,3214.3,2.4739509]
[1763278290343,1.105,3214.4,3213.6,3.11177495]
[1763278290509,0.188,3214.4,3214.3,0.001]
[1763278290906,0.6538,3214.4,3214.3,0.001]
[1763278291109,1.105,3214.4,3212.3,0.39190324]
[1763278291307,0.188,3213.8,3212.3,6.2260374]
[1763278291540,0.43574154,3213.8,3212.7,2.28941543]
[1763278291706,0.4512,3213.7,3212.7,2.28941543]
[1763278291909,0.4512,3213.7,3213.6,0.001]
[1763278292329,0.917,3213.7,3213.6,0.001]
[1763278296925,0.9161,3213.7,3213.6,0.001]
[1763278297327,0.64587599,3213.7,3213.6,0.001]
[1763278299938,0.95820513,3213.7,3213.6,0.001]
[1763278302232,0.64587599,3213.7,3213.6,0.001]
[1763278309063,0.64787599,3213.7,3213.6,0.001]
[1763278316243,0.9385362,3213.7,3213.6,0.001]
[1763278319344,0.93904051,3213.7,3213.6,0.001]
[1763278322102,0.48874051,3213.7,3213.6,0.001]
[1763278322299,0.29316452,3213.7,3213.6,0.4849]
[1763278322686,0.29316452,3213.7,3213.6,0.9814]
[1763278323509,0.99056452,3213.7,3213.6,0.001]
[1763278323705,0.54226452,3213.7,3213.6,0.001]
[1763278324474,0.99056452,3213.7,3213.6,0.001]
[1763278325909,0.54226452,3213.7,3213.6,0.001]
[1763278327417,0.29316452,3213.7,3213.6,0.4974]
[1763278329784,0.29316452,3213.7,3213.6,0.9698]
[1763278329983,0.002,3213.7,3213.6,4.08157495]
[1763278330308,0.002,3213.7,3213.6,4.48983245]
[1763278331285,0.002,3213.7,3213.6,8.31849268]
[1763278333288,0.48817597,3215.9,3214.3,0.6828]
[1763278333489,0.1825,3216.2,3215.1,1.088304]
[1763278333821,0.29130706,3216.1,3215.1,5.78351398]
[1763278334021,0.1825,3216.2,3215.1,6.25061398]
[1763278335523,0.4733,3216.1,3215.1,6.25061398]
[1763278339042,0.1743,3215.9,3215.1,6.25061398]
[1763278339747,0.1743,3215.9,3215.1,3.51582716]
[1763278340046,0.7318,3215.2,3214.6,4.24450206]
[1763278340202,0.0028,3215.0,3214.4,7.53004178]
[1763278340407,0.0028,3215.0,3214.6,0.405504]
[1763278340624,0.0028,3215.0,3214.5,2.33469498]
[1763278340951,0.002,3215.2,3214.9,0.4665]
[1763278341908,0.2566,3215.0,3214.6,4.2445466]
[1763278342110,0.2566,3215.0,3214.7,1.1337408]
[1763278342357,0.7278,3215.0,3214.7,1.1337408]
[1763278342556,0.0047,3214.8,3214.7,1.1337408]
[1763278343347,0.0047,3214.8,3214.5,3.11088782]
[1763278343549,0.0072,3214.6,3214.1,0.599604]
[1763278343848,0.1825,3214.9,3214.2,6.22238814]
[1763278344214,0.6558,3214.9,3214.2,6.22238814]
[1763278345796,0.002,3215.0,3214.2,6.22238814]
[1763278345797,0.002,3215.0,3214.3,0.4671]
[1763278345914,0.002,3215.0,3214.4,6.22200098]
[1763278347018,0.002,3215.0,3214.4,3.11100049]
[1763278347420,0.002,3215.0,3214.4,3.57810049]
[1763278347653,0.002,3215.0,3214.4,3.11100049]
[1763278347840,0.1726,3214.9,3214.4,3.11100049]
[1763278348042,0.2664,3214.5,3214.2,3.11116822]
[1763278348232,0.2664,3214.5,3214.2,6.65538458]
[1763278348750,0.2664,3214.5,3214.2,3.54419051]
[1763278349356,0.4536,3214.3,3214.1,4.65053073]
[1763278349562,0.264,3214.2,3214.1,3.11128593]
[1763278349952,0.1726,3214.9,3214.1,3.57778593]
[1763278350261,0.4733,3214.6,3214.1,3.57778593]
[1763278350454,0.2664,3214.2,3214.0,3.51684865]
[1763278350651,0.4733,3214.6,3214.0,6.62823632]
[1763278350860,0.4733,3214.6,3214.0,7.01158997]
[1763278351033,0.4733,3214.6,3214.0,3.9002023]
[1763278351833,0.4733,3214.6,3214.0,3.11134465]
[1763278352036,0.4733,3214.6,3213.9,6.9374467]
[1763278352344,0.4733,3214.6,3213.9,10.04893118]
[1763278352545,0.1726,3214.9,3213.9,10.51603118]
[1763278352868,0.6459,3214.9,3214.0,0.4671]
[1763278353034,0.6459,3214.9,3214.0,1.72291432]
[1763278353234,0.4733,3214.8,3214.0,1.72291432]
[1763278353437,0.002,3215.0,3214.1,2.70331205]
[1763278353831,0.002,3215.0,3214.2,0.4671]
[1763278354470,0.4583,3215.0,3214.2,3.57824352]
[1763278354764,0.2833,3214.3,3214.0,4.36715035]
[1763278354963,0.2833,3214.3,3214.1,0.81931504]
[1763278356565,0.0045,3214.2,3214.0,1.25581432]
[1763278356868,0.4563,3214.8,3214.0,6.70464079]
[1763278357032,0.4563,3214.8,3214.1,0.4837]
[1763278357583,0.2833,3214.2,3214.0,3.11135312]
[1763278357735,0.0028,3214.1,3213.9,3.826]
[1763278357936,0.2805,3214.0,3213.9,3.826]
[1763278358344,0.4563,3214.3,3213.9,6.93748448]
[1763278359348,0.2833,3214.0,3213.9,3.826]
[1763278360154,0.4546,3214.2,3213.9,3.826]
[1763278360351,0.4546,3214.2,3213.9,6.93747212]
[1763278360551,0.4546,3214.2,3214.0,0.001]
[1763278360970,0.4563,3214.7,3214.1,0.4837]
[1763278361840,0.4563,3214.7,3213.7,7.35709704]
[1763278362240,0.42519581,3214.7,3213.7,7.35709704]
[1763278362677,0.4762,3213.8,3213.7,4.65092292]
[1763278363468,0.002,3214.8,3213.7,7.92360104]
[1763278363674,0.002,3214.8,3213.8,0.161]
[1763278363675,0.2238712,3214.8,3213.8,0.161]
[1763278364285,0.4563,3214.7,3213.8,0.161]
[1763278365042,0.4563,3214.7,3213.7,7.76260104]
[1763278365043,0.4762,3213.9,3213.7,3.51713928]
[1763278365239,0.4762,3213.8,3213.7,3.51713928]
[1763278366765,0.1812,3213.9,3213.7,3.51713928]
[1763278367082,0.4563,3214.3,3213.7,6.6288174]
[1763278367879,0.4563,3214.3,3213.7,3.51713928]
[1763278368680,0.71190718,3214.8,3213.7,3.51713928]
[1763278368887,0.9491163,3214.7,3213.7,6.6288174]
[1763278369179,0.6581248,3214.7,3213.7,6.6288174]
[1763278369485,0.4563,3214.6,3213.7,6.6288174]
[1763278372995,0.4563,3214.6,3213.8,1.74570746]
[1763278373197,0.29148662,3214.5,3213.8,1.74570746]
[1763278373397,0.4563,3214.6,3213.8,1.74570746]
[1763278373585,0.29148665,3214.5,3213.8,1.74570746]
[1763278373786,0.4563,3214.6,3213.8,4.85723439]
[1763278374086,0.29148661,3214.5,3213.8,4.85723439]
[1763278374286,0.4563,3214.6,3213.8,4.85723439]
[1763278374594,0.29151317,3214.5,3213.8,4.85723439]
[1763278374799,0.4563,3214.6,3213.8,7.96881569]
[1763278375000,0.4563,3214.6,3214.0,1.74570746]
[1763278375198,0.29154743,3214.5,3214.0,1.74570746]
[1763278375414,0.4563,3214.6,3214.0,1.74570746]
[1763278375621,0.29154755,3214.5,3214.0,1.74570746]
[1763278375785,0.4563,3214.6,3214.0,1.74570746]
[1763278375993,0.29154715,3214.5,3214.0,1.74570746]
[1763278376299,0.4563,3214.6,3214.0,1.74570746]
[1763278376486,0.29159695,3214.5,3214.0,1.74570746]
[1763278376682,0.4563,3214.6,3214.0,1.74570746]
[1763278376909,0.29159771,3214.5,3214.0,1.74570746]
[1763278377119,0.4563,3214.6,3214.0,4.85702503]
[1763278378024,0.4563,3214.6,3213.9,3.11143512]
[1763278378201,0.4762,3213.9,3213.8,3.51703621]
[1763278378376,0.6574,3213.9,3213.6,0.001]
[1763278378582,0.4762,3213.7,3213.6,0.001]
[1763278378981,0.9325,3213.7,3213.6,0.001]
[1763278379190,1.21844075,3213.7,3213.6,0.001]
[1763278379878,0.9325,3213.7,3213.6,0.001]
[1763278380378,0.6375,3213.9,3213.6,0.001]
[1763278381518,0.4563,3214.3,3213.6,1.74670746]
[1763278381680,0.29161364,3214.2,3213.6,1.74670746]
[1763278381882,0.4563,3214.6,3214.0,1.74570746]
[1763278382081,0.74791922,3214.5,3213.8,1.74570746]
[1763278382423,0.29161922,3214.4,3213.8,1.74570746]
[1763278382623,0.4563,3214.5,3213.8,1.74570746]
[1763278383384,0.4563,3214.5,3213.8,2.11104895]
[1763278384816,0.4563,3214.5,3213.9,3.11148448]
[1763278385023,0.4563,3214.5,3214.0,1.74570746]
[1763278385722,0.4563,3214.5,3213.9,3.11148448]
[1763278386899,0.4563,3214.5,3213.7,6.2233244]
[1763278387096,0.4563,3214.5,3213.7,7.15968943]
[1763278390436,0.4755,3214.8,3213.7,7.15968943]
[1763278390597,0.4735,3214.5,3213.7,7.15968943]
[1763278394955,0.4735,3214.5,3213.7,7.32068943]
[1763278398068,0.4735,3214.5,3213.8,0.405504]
[1763278401253,0.002,3214.7,3213.9,6.22296896]
[1763278401461,0.77709357,3214.6,3213.9,6.22296896]
[1763278401660,0.4854,3214.6,3213.9,6.22296896]
[1763278402361,0.002,3214.7,3213.9,8.26534407]
[1763278402563,0.002,3214.7,3214.0,0.405504]
[1763278402762,0.002,3214.7,3214.0,1.89439069]
[1763278403262,0.4874,3214.7,3214.0,1.73339069]
[1763278404766,0.002,3214.7,3214.1,6.22258174]
[1763278405264,0.002,3214.7,3214.1,3.11129087]
[1763278405467,0.4874,3214.7,3214.1,3.11129087]
[1763278405761,0.4874,3214.7,3214.1,6.22258174]
[1763278406571,0.4617,3214.2,3214.1,3.11129087]
[1763278407071,0.9471,3214.2,3214.1,3.11129087]
[1763278407261,0.002,3214.7,3214.2,0.405504]
[1763278407434,0.4874,3214.7,3214.3,1.7454899]
[1763278407971,0.002,3214.7,3214.6,2.3119939]
[1763278408144,0.002,3214.7,3214.6,3.4457347]
[1763278408333,0.002,3214.7,3214.6,4.14195716]
[1763278408529,0.002,3214.7,3214.6,4.26656445]
[1763278408958,0.002,3214.7,3214.6,7.37737139]
[1763278411784,0.002,3214.7,3214.6,7.21637139]
[1763278412078,0.002,3214.7,3214.6,5.47088149]
[1763278412277,0.002,3214.7,3214.6,7.21637139]
[1763278412662,0.002,3214.7,3214.6,5.63188149]
[1763278413056,0.002,3214.7,3214.6,9.45788149]
[1763278413975,0.002,3214.7,3214.6,9.29688149]
[1763278414512,0.495,3214.7,3214.6,8.19515503]
[1763278414714,0.9814,3214.7,3214.6,8.07054774]
[1763278414915,0.9814,3214.7,3214.6,6.93680694]
[1763278416382,0.9814,3214.7,3214.6,3.11080694]
[1763278417007,0.495,3214.7,3214.6,3.11080694]
[1763278417210,0.002,3214.7,3214.6,4.74676024]
[1763278418085,0.002,3214.7,3214.6,3.11080694]
[1763278418410,0.002,3214.7,3214.6,3.26634594]
[1763278419522,0.495,3214.7,3214.6,3.26634594]
[1763278422013,0.002,3214.7,3214.6,3.26634594]
[1763278422215,0.002,3214.7,3214.6,6.41460567]
[1763278422386,0.002,3214.7,3214.6,6.54449761]
[1763278422588,0.002,3214.7,3214.6,7.67823841]
[1763278422902,0.002,3214.7,3214.6,7.51723841]
[1763278423090,0.002,3214.7,3214.6,7.6418554]
[1763278425325,0.002,3214.7,3214.6,0.561043]
[1763278425326,0.495,3214.7,3214.6,0.561043]
[1763278425530,0.9814,3214.7,3214.6,3.26634594]
[1763278427325,0.002,3214.7,3214.6,3.26634594]
[1763278427527,0.002,3214.7,3214.6,0.155539]
[1763278427528,0.9814,3214.7,3214.6,0.155539]
[1763278434435,1.27248775,3214.7,3214.6,0.155539]
[1763278434738,1.58224186,3214.7,3214.6,0.155539]
[1763278439555,2.71598266,3214.7,3214.6,0.155539]
[1763278449126,2.71548279,3214.7,3214.6,0.155539]
[1763278450143,4.35143609,3214.7,3214.6,0.155539]
[1763278453971,3.86503609,3214.7,3214.6,0.155539]
[1763278454334,4.34913609,3214.7,3214.6,0.155539]
[1763278455444,4.34966949,3214.7,3214.6,0.155539]
[1763278458471,1.56890775,3214.6,3214.5,0.001]
[1763278458757,0.405504,3214.5,3214.2,0.001]
[1763278458942,2.4984573,3214.3,3214.2,0.001]
[1763278459143,0.405504,3214.2,3213.9,0.001]
[1763278459355,3.2266941,3214.0,3213.9,0.001]
[1763278459552,3.51781538,3214.0,3213.9,0.001]
[1763278459744,4.00191538,3214.0,3213.9,0.001]
[1763278461570,4.00148495,3214.0,3213.9,0.001]
[1763278462185,4.00148495,3214.0,3213.6,0.001]
[1763278462334,2.2875533,3213.7,3213.6,0.001]
[1763278462539,3.71198495,3213.7,3213.6,0.001]
[1763278462773,4.19608495,3213.7,3213.6,0.001]
[1763278463570,1.1337408,3213.6,3212.1,0.062]
[1763278463881,1.80532383,3213.6,3212.1,0.062]
[1763278464493,2.93906463,3213.6,3212.1,0.062]
[1763278469146,3.34456863,3213.6,3212.1,0.062]
[1763278469448,3.34456863,3213.6,3212.1,0.223]
[1763278469655,3.34456863,3213.6,3212.1,0.062]
[1763278470502,3.34456863,3213.6,3212.1,0.223]
[1763278472587,3.34456863,3213.6,3212.1,0.062]
[1763278472894,3.34456863,3213.6,3212.2,0.161]
[1763278474562,3.34456863,3213.6,3212.4,0.161]
[1763278474992,6.84035935,3213.6,3212.4,0.161]
[1763278475295,6.84035935,3213.6,3212.5,0.161]
[1763278478399,6.84035935,3213.6,3212.1,0.062]
[1763278478400,6.83195935,3213.6,3212.3,0.161]